[Event "CCT Chessable Masters Place D-I 2024"]
[Site "Online"]
[Date "2024.02.01"]
[Round "2"]
[White "Nepomniachtchi, Ian"]
[Black "Mamedov, Rauf"]
[Result "0-1"]
[ECO "B30"]
[WhiteElo "2769"]
[BlackElo "2651"]
[Annotator "TA"]
[PlyCount "78"]
[EventDate "2024.01.12"]
[EventType "k.o."]
[EventCountry "NET"]
[SourceTitle "playchess.com"]
[Source "ChessBase"]
[SourceQuality "1"]
[TimeControl "600+2"]

{[%evp 11,78,22,29,35,33,51,46,12,2,9,14,0,0,0,0,0,0,0,0,0,0,0,0,0,0,-13,-14,-29,-23,-68,-67,-96,-93,-93,-61,-251,-251,-252,-254,-251,-238,-330,-170,-172,-177,-205,-196,-490,-492,-556,-547,-623,-570,-621,-608,-792,-620,-612,-610,-597,-575,-4986,-4866,-29979,-29980,-29984,-29985,-29985,-29985]} 1. e4 {[%emt 0:00:02]} c5 {[%emt 0:00:03]} 2. Nf3 {[%emt 0:00:02]} Nc6 {[%emt 0:00:01]} 3. Bb5 {[%emt 0:00:01]} Nf6 {[%emt 0:00:01]} 4. Nc3 {[%emt 0:00:06]} Qc7 {[%emt 0:00:02]} 5. O-O {[%emt 0:00:05]} Nd4 {[%emt 0:00:01]} 6. Re1 {[%emt 0:00:31]} a6 {[%emt 0:00:01]} 7. Bf1 {[%emt 0:00:03]} d6 {[%emt 0:00:02]} 8. Nxd4 {[%emt 0:00:17]} cxd4 {[%emt 0:00:01]} 9. Nd5 {[%emt 0:00:00] White is slightly better.} Nxd5 {[%emt 0:00:00]} 10. exd5 {[%emt 0:00:00]} g6 {[%emt 0:00:01]} 11. d3 {[%emt 0:00:32]} Bg7 {[%emt 0:00:02]} 12. Bg5 {[%emt 0:00:01]} e5 {[%emt 0:00:01]} 13. dxe6 {[%emt 0:00:07]} Bxe6 {[%emt 0:00:02]} 14. g3 {[%emt 0:00:18]} O-O {[%emt 0:00:02]} 15. Bg2 {[%emt 0:00:01]} Rac8 {[%emt 0:00:02]} 16. Rc1 {[%emt 0:00:10]} Qb6 {[%emt 0:00:19]} 17. b3 {[%emt 0:00:17]} Rc5 {[%emt 0:00:05]} 18. Bf4 {[%emt 0:00:38]} Rfc8 {[%emt 0:00:02]} 19. Qd2 {[%emt 0:00:35]} Qc7 {[%emt 0:00:03]} 20. Qb4 {[%emt 0:00:02]} b5 {[%emt 0:00:18]} 21. Re2 {[%emt 0:00:06]} g5 {[%emt 0:00:36]} 22. Bd2 {[%emt 0:00:15]} Rxc2 {[%emt 0:00:02]} 23. Rce1 {[%emt 0:00:21] [#] This costs White the game.} ({White has to play} 23. Rxc2 $15 Qxc2 24. Rxe6 fxe6 25. Qxd6) 23... Rxa2 $19 {[%emt 0:00:17]} 24. Bxg5 {[%emt 0:01:48]} Rxe2 {[%emt 0:00:03]} 25. Rxe2 {[%emt 0:00:00]} Qc3 {[%emt 0:00:17]} 26. Qa3 {[%emt 0:00:01]} Qc5 {[%emt 0:02:48]} (26... Bxb3 27. Qxa6 Be6 28. Bd2 $15 (28. Qxb5 Qa1+ 29. Bf1 Bh3)) (26... Qxb3 27. Qxa6 h6 (27... Qxd3 28. Qxc8+ Bxc8 29. Re8+ Bf8 30. Bh6 Qb1+ 31. Bf1) 28. Bd2) (26... Qxd3 27. Rxe6 fxe6 28. Qxa6 $19) (26... a5 $142 {Threatens to win with ...a4.} 27. Rxe6 fxe6 28. Qxd6 Qe1+ (28... Qxb3 29. Bb7 $11) 29. Bf1 Rf8) 27. Qxc5 {[%emt 0:00:42]} Rxc5 {[%emt 0:00:25]} 28. h4 {[%emt 0:00:13]} a5 {[%emt 0:00:20][%cal Oa5a4]} (28... Bxb3 29. Re8+ Bf8 30. Bh6) 29. Be7 $2 {[%emt 0:00:09]} (29. Re1) 29... Rc3 {[%emt 0:00:02]} (29... Bxb3 30. Bd8 Re5 31. Rxe5 dxe5 (31... Bxe5 32. Bxa5 d5 33. Kf1 $11) 32. Bxa5 $19) 30. Bxd6 {[%emt 0:00:05]} Rxd3 {[%emt 0:00:11]} 31. Bc7 {[%emt 0:00:56]} a4 {[%emt 0:00:34]} 32. bxa4 {[%emt 0:00:01]} bxa4 {[%emt 0:00:01]} 33. Bh3 {[%emt 0:00:37]} a3 {[%emt 0:00:21]} (33... Bxh3 34. Re8+ Bf8 35. Bd6 $19) 34. Bxe6 {[%emt 0:00:06]} fxe6 {[%emt 0:00:00] KRB-KRB} 35. Kg2 {[%emt 0:00:04]} Rb3 {[%emt 0:00:44] [#] Hoping for ...Rb2.} 36. Rxe6 {[%emt 0:00:27]} d3 {[%emt 0:00:01] ( -> ...a2)} 37. Re8+ {[%emt 0:00:37]} Kf7 {[%emt 0:00:02] Black mates.} 38. Rd8 {[%emt 0:00:01]} a2 {[%emt 0:00:07]} 39. Rd7+ {[%emt 0:00:00]} Ke8 {[%emt 0:00:07] Weighted Error Value: White=0.73/Black=0.17 (very precise) .  Loses game:     	White=1     	---        Mistake:       	White=1     	Black=1      Inaccurate:     	White=6     	Black=1      OK:         	White=5     	Black=14     Best:        	White=3     	Black=3} 0-1

[Event "CCT Chessable Masters Place D-I 2024"]
[Site "Online"]
[Date "2024.02.01"]
[Round "2"]
[White "Firouzja, Alireza"]
[Black "Sibelephant"]
[Result "1-0"]
[ECO "D35"]
[WhiteElo "2759"]
[BlackElo "2796"]
[Annotator "RC"]
[PlyCount "101"]
[EventDate "2024.01.12"]
[EventType "k.o."]
[EventCountry "NET"]
[SourceTitle "playchess.com"]
[Source "ChessBase"]
[SourceQuality "1"]
[TimeControl "600+2"]

1. d4 {[%emt 0:00:08]} d5 {[%emt 0:00:17]} 2. c4 {[%emt 0:00:16]} e6 {[%emt 0:00:01]} 3. Nc3 {[%emt 0:00:02]} Nf6 {[%emt 0:00:29]} 4. cxd5 {[%emt 0:00:03]} exd5 {[%emt 0:00:01]} 5. Bg5 {[%emt 0:00:01]} c6 {[%emt 0:00:02]} 6. e3 {[%emt 0:00:02]} h6 {[%emt 0:00:11]} 7. Bh4 {[%emt 0:00:01]} Be7 {[%emt 0:00:02]} 8. Bd3 {[%emt 0:00:10]} O-O {[%emt 0:00:01]} 9. Nge2 {[%emt 0:00:14]} a5 {[%emt 0:00:14]} 10. O-O {[%emt 0:00:12]} Re8 {[%emt 0:00:02]} 11. Rc1 {[%emt 0:00:29]} Nbd7 {[%emt 0:00:32]} 12. a4 {[%emt 0:00:02]} Nh5 {[%emt 0:00:29]} 13. Bxe7 {[%emt 0:00:12]} Qxe7 {[%emt 0:00:01]} 14. Qd2 {[%emt 0:00:23]} Nf8 {[%emt 0:00:19]} 15. Rce1 {[%emt 0:00:20]} Bd7 {[%emt 0:00:15]} 16. Nc1 {[%emt 0:00:54]} Nf6 {[%emt 0:00:37]} 17. f3 {[%emt 0:00:27]} Ne6 {[%emt 0:02:15]} 18. Bb1 {[%emt 0:01:14]} c5 {[%emt 0:00:17]} 19. Nd3 {[%emt 0:00:06]} Bc6 {[%emt 0:01:13]} 20. Qf2 {[%emt 0:00:26]} cxd4 {[%emt 0:00:35]} 21. exd4 {[%emt 0:00:01]} Qd6 {[%emt 0:00:16]} 22. Re3 {[%emt 0:00:52]} Re7 {[%emt 0:01:02]} 23. Rfe1 {[%emt 0:00:26]} Rae8 {[%emt 0:00:01]} 24. Ba2 {[%emt 0:00:15]} Kf8 {[%emt 0:01:05]} 25. h3 {[%emt 0:00:09]} Qd8 {[%emt 0:00:19]} 26. Re5 {[%emt 0:00:45]} Nd7 {[%emt 0:00:04]} 27. Rxd5 {[%emt 0:00:17]} Qb6 {[%emt 0:00:09]} 28. Nc5 {[%emt 0:02:08]} Bxd5 {[%emt 0:00:05]} 29. Nxd5 {[%emt 0:00:04]} Qd8 {[%emt 0:00:04]} 30. Nxb7 {[%emt 0:00:06]} Qb8 {[%emt 0:00:01]} 31. Nxe7 {[%emt 0:00:01]} Qxb7 {[%emt 0:00:03]} 32. Bxe6 {[%emt 0:00:05]} Rxe7 {[%emt 0:00:01]} 33. Bxd7 {[%emt 0:00:03]} Rxd7 {[%emt 0:00:00]} 34. Qe3 {[%emt 0:00:03]} Rd8 {[%emt 0:00:03]} 35. Qc3 {[%emt 0:00:04]} Qb6 {[%emt 0:00:03]} 36. Re4 {[%emt 0:00:03]} Kg8 {[%emt 0:00:02]} 37. Qc5 {[%emt 0:00:06]} Qxb2 {[%emt 0:00:02]} 38. Qxa5 {[%emt 0:00:02]} Qb1+ {[%emt 0:00:01]} 39. Kh2 {[%emt 0:00:01]} Qb8+ {[%emt 0:00:01]} 40. Qe5 {[%emt 0:00:02]} Qa7 {[%emt 0:00:01]} 41. d5 {[%emt 0:00:04]} Qc5 {[%emt 0:00:05]} 42. Rd4 {[%emt 0:00:01]} Ra8 {[%emt 0:00:03]} 43. Qf4 {[%emt 0:00:01]} Rd8 {[%emt 0:00:01]} 44. d6 {[%emt 0:00:01]} g5 {[%emt 0:00:01]} 45. Qf6 {[%emt 0:00:02]} Rd7 {[%emt 0:00:02]} 46. h4 {[%emt 0:00:01]} Qc3 {[%emt 0:00:04]} 47. hxg5 {[%emt 0:00:01]} h5 {[%emt 0:00:01]} 48. g6 {[%emt 0:00:02]} fxg6 {[%emt 0:00:00]} 49. Qxg6+ {[%emt 0:00:01]} Rg7 {[%emt 0:00:01]} 50. Qe8+ {[%emt 0:00:00]} Kh7 {[%emt 0:00:01]} 51. Qxh5+ {[%emt 0:00:01]} 1-0

[Event "CCT Chessable Masters Place D-I 2024"]
[Site "Online"]
[Date "2024.02.01"]
[Round "2"]
[White "So, Wesley"]
[Black "Sevian, Samuel"]
[Result "1/2-1/2"]
[ECO "E36"]
[WhiteElo "2757"]
[BlackElo "2697"]
[Annotator "TA"]
[PlyCount "36"]
[EventDate "2024.01.12"]
[EventType "k.o."]
[EventCountry "NET"]
[SourceTitle "playchess.com"]
[Source "ChessBase"]
[SourceQuality "1"]
[TimeControl "600+2"]

{[%evp 12,36,19,22,31,19,19,27,20,23,25,0,0,0,0,0,0,0,0,0,0,0,0,0,0,0,0]} 1. d4 {[%emt 0:00:05]} Nf6 {[%emt 0:00:04]} 2. c4 {[%emt 0:00:02]} e6 {[%emt 0:00:01]} 3. Nc3 {[%emt 0:00:00]} Bb4 {[%emt 0:00:01]} 4. Qc2 {[%emt 0:00:01]} d5 {[%emt 0:00:03]} 5. a3 {[%emt 0:00:01]} Bxc3+ {[%emt 0:00:03]} 6. Qxc3 {[%emt 0:00:00]} O-O {[%emt 0:00:13]} 7. Bg5 {[%emt 0:00:02]} h6 {[%emt 0:00:01]} 8. Bxf6 {[%emt 0:00:02]} Qxf6 {[%emt 0:00:01]} 9. Nf3 {[%emt 0:00:03]} dxc4 {[%emt 0:00:05] White has an edge.} 10. Qxc4 {[%emt 0:00:01]} Nc6 {[%emt 0:00:00]} 11. e3 {[%emt 0:00:23]} e5 {[%emt 0:00:26] The position is equal.} 12. d5 {[%emt 0:00:05]} e4 {[%emt 0:00:19]} 13. Qxe4 {[%emt 0:00:10][%cal Of1d3] [#] Black must now prevent Bd3!} Qxb2 {[%emt 0:00:33]} 14. Rd1 {[%emt 0:00:02]} (14. Rb1 $5 Qc3+ $8 (14... Qxa3 15. dxc6 Qc3+ 16. Kd1 $18) 15. Nd2 $17) 14... Qc3+ {[%emt 0:00:03]} 15. Rd2 {[%emt 0:00:01]} Qa1+ {[%emt 0:00:25]} 16. Rd1 $1 {[%emt 0:00:03]} Qc3+ {[%emt 0:00:01]} (16... Qxa3 $2 17. dxc6 Qa5+ 18. Nd2 $18) 17. Rd2 {[%emt 0:00:00]} Qa1+ {[%emt 0:00:07]} 18. Rd1 $1 {[%emt 0:00:02]} Qc3+ {[%emt 0:00:00] A rather calm draw.   Weighted Error Value: White=0.02 (flawless) /Black=0.01 (flawless) .  OK:         	White=7     	Black=6      Best:        	---       	Black=1      Strong:       	White=2     	---} (18... Qxa3 $2 {perishes.} 19. dxc6 Qa5+ 20. Nd2 $18) 1/2-1/2

[Event "CCT Chessable Masters Place D-I 2024"]
[Site "Online"]
[Date "2024.02.01"]
[Round "2"]
[White "AnishGiri"]
[Black "Lazavik, Denis"]
[Result "1/2-1/2"]
[ECO "C54"]
[WhiteElo "2735"]
[BlackElo "2566"]
[Annotator "TA"]
[PlyCount "92"]
[EventDate "2024.01.12"]
[EventType "k.o."]
[EventCountry "NET"]
[SourceTitle "playchess.com"]
[Source "ChessBase"]
[SourceQuality "1"]
[TimeControl "600+2"]

{[%evp 13,92,20,13,10,17,9,27,32,19,23,25,26,21,21,21,20,17,19,31,16,39,44,42,38,41,50,47,44,50,24,45,35,38,-29,-20,-183,-175,-211,-225,-174,-85,-78,-21,-36,-29,-35,0,0,0,-44,-39,-53,-42,-52,-45,-73,-19,-18,-18,-15,-5,-7,0,0,0,-1,0,-24,0,0,0,0,0,0,0,0,0,0,0,0,0]} 1. e4 {[%emt 0:00:03]} e5 {[%emt 0:00:04]} 2. Nf3 {[%emt 0:00:00]} Nc6 {[%emt 0:00:00]} 3. Bc4 {[%emt 0:00:00]} Bc5 {[%emt 0:00:02]} 4. O-O {[%emt 0:00:01]} Nf6 {[%emt 0:00:00]} 5. d3 {[%emt 0:00:01]} d6 {[%emt 0:00:03]} 6. c3 {[%emt 0:00:01]} a6 {[%emt 0:00:04]} 7. a4 {[%emt 0:00:02]} h6 {[%emt 0:00:01]} 8. Nbd2 {[%emt 0:00:02]} O-O {[%emt 0:00:03]} 9. Re1 {[%emt 0:00:05]} Ba7 {[%emt 0:00:13]} 10. Nf1 {[%emt 0:00:08] White has an edge.} Re8 {[%emt 0:00:02]} 11. b4 {[%emt 0:00:19]} Be6 {[%emt 0:00:04]} 12. Bxe6 {[%emt 0:00:00]} Rxe6 {[%emt 0:00:01]} 13. Be3 {[%emt 0:00:01]} Bxe3 {[%emt 0:00:09]} 14. Nxe3 {[%emt 0:00:00]} d5 {[%emt 0:00:02][%cal Bd6d5,Bd5d4][%mdl 32]} 15. Qc2 {[%emt 0:00:07]} Qd7 {[%emt 0:00:11]} 16. g3 {[%emt 0:00:33]} Rd8 {[%emt 0:00:27]} 17. b5 {[%emt 0:00:08] [#] exd5 is the strong threat.} Ne7 {[%emt 0:00:42]} 18. c4 {[%emt 0:00:00]} d4 {[%emt 0:00:07]} 19. Nd5 {[%emt 0:00:01]} Ng6 {[%emt 0:00:02]} 20. Rab1 {[%emt 0:00:45]} axb5 {[%emt 0:00:55]} 21. axb5 {[%emt 0:00:03]} c6 {[%emt 0:00:08]} 22. bxc6 {[%emt 0:00:13]} bxc6 {[%emt 0:00:00]} 23. Nxf6+ {[%emt 0:00:51]} (23. Nb6 $14 Qe7 24. Kg2) 23... Rxf6 $11 {[%emt 0:00:02]} 24. Nd2 {[%emt 0:01:51]} (24. Kg2 $11) 24... Qh3 $19 {[%emt 0:01:01][%cal Og6h4] ( -> ...Nh4!)} 25. Nf1 {[%emt 0:00:03] [#]} Nf4 {[%emt 0:00:35][%csl Gf4][%cal Rh3g2][%mdl 512] Dodges Qe2} 26. f3 {[%emt 0:00:04]} (26. gxf4 $2 {perishes.} exf4 27. f3 Rg6+ $19 (27... Qxf3 28. Re2 $17) (27... Qxf3 28. Re2 $17)) 26... Ne6 {[%emt 0:00:07]} (26... h5 $19 {[%cal Oh5h4] has better winning chances. Threatens to win with ...h4!} 27. gxf4 Rg6+ 28. Ng3 exf4) 27. Qe2 {[%emt 0:00:08]} Nc5 {[%emt 0:00:34]} ({Better is} 27... h5 $17 {aiming for ...Ng5.} 28. Qg2 Qxg2+ 29. Kxg2 Kh7) 28. Ra1 $11 {[%emt 0:00:05]} Qd7 {[%emt 0:00:21]} 29. Reb1 {[%emt 0:00:13]} Re6 {[%emt 0:00:06][%cal Bf6e6,Be6e8,Be8b8][%mdl 32]} 30. Ra5 {[%emt 0:00:12]} Qd6 {[%emt 0:00:05]} 31. Nd2 {[%emt 0:00:34]} Ree8 {[%emt 0:00:10]} 32. Nb3 {[%emt 0:00:10]} Nd7 {[%emt 0:00:11]} 33. Qa2 {[%emt 0:00:17]} Rb8 {[%emt 0:00:13]} 34. Ra7 {[%emt 0:00:24]} Qe6 {[%emt 0:00:37]} (34... h5 $17) 35. Nd2 {[%emt 0:00:29]} Rxb1+ {[%emt 0:00:44]} 36. Qxb1 {[%emt 0:00:02]} Rb8 {[%emt 0:00:05]} 37. Qa2 {[%emt 0:00:02]} Kh7 {[%emt 0:00:39]} 38. Ra8 {[%emt 0:00:14]} Rxa8 {[%emt 0:00:25]} 39. Qxa8 {[%emt 0:00:01][%mdl 4096] Endgame. KQN-KQN} Qd6 {[%emt 0:00:00]} 40. Kf2 {[%emt 0:00:36]} Qb4 {[%emt 0:00:50]} 41. Ke2 {[%emt 0:00:02] The position is equal.} Nc5 {[%emt 0:00:01]} 42. Qc8 {[%emt 0:00:05]} Qc3 {[%emt 0:00:40]} 43. Qf5+ {[%emt 0:00:04]} Kg8 {[%emt 0:00:01]} 44. Qc8+ {[%emt 0:00:00]} Kh7 {[%emt 0:00:01]} 45. Qf5+ {[%emt 0:00:01]} Kg8 {[%emt 0:00:00][%cal Og7g5] ...g5! would now be deadly.} 46. Qc8+ {[%emt 0:00:00]} Kh7 {[%emt 0:00:01] Weighted Error Value: White=0.16 (very precise) /Black=0.12 (very precise) .  Loses game:     	White=1     	---        Mistake:       	White=1     	Black=3      Inaccurate:     	White=3     	Black=1      OK:         	White=17    	Black=11     Best:        	White=4     	Black=1} 1/2-1/2

[Event "CCT Chessable Masters Place D-I 2024"]
[Site "Online"]
[Date "2024.02.01"]
[Round "2"]
[White "Sevian, Samuel"]
[Black "So, Wesley"]
[Result "0-1"]
[ECO "D37"]
[WhiteElo "2697"]
[BlackElo "2757"]
[Annotator "TA"]
[PlyCount "82"]
[EventDate "2024.01.12"]
[EventType "k.o."]
[EventCountry "NET"]
[SourceTitle "playchess.com"]
[Source "ChessBase"]
[SourceQuality "1"]
[TimeControl "600+2"]

{[%evp 9,82,19,31,20,27,32,31,27,32,33,34,33,35,27,31,31,27,19,29,-41,-45,-31,-44,-39,-35,-31,-27,-37,-30,-30,-25,-27,0,-52,-53,-63,-29,-48,-31,-151,-151,-144,-132,-164,-169,-163,-105,-116,-121,-102,-100,-176,-145,-132,-140,-147,-142,-144,-146,-131,-149,-178,-162,-529,-537,-586,-551,-576,-586,-575,-533,-632,-587,-948,-880]} 1. c4 {[%emt 0:00:04]} e6 {[%emt 0:00:18]} 2. Nc3 {[%emt 0:00:07]} d5 {[%emt 0:00:00]} 3. d4 {[%emt 0:00:04]} a6 {[%emt 0:00:01]} 4. cxd5 {[%emt 0:00:06]} exd5 {[%emt 0:00:00]} 5. Nf3 {[%emt 0:00:01]} Nf6 {[%emt 0:00:03]} 6. Bg5 {[%emt 0:00:04]} Be6 {[%emt 0:00:03]} 7. e3 {[%emt 0:00:01]} Nbd7 {[%emt 0:00:01]} 8. h3 {[%emt 0:00:02] White is slightly better.} c6 {[%emt 0:00:24]} 9. Bd3 {[%emt 0:00:03]} Bd6 {[%emt 0:00:02]} 10. O-O {[%emt 0:00:05]} Qc7 {[%emt 0:00:04]} 11. Qd2 $1 {[%emt 0:00:01]} O-O {[%emt 0:00:22]} 12. Bf4 {[%emt 0:00:01]} Rfe8 {[%emt 0:00:04]} 13. a3 {[%emt 0:00:26]} Nb6 {[%emt 0:00:17]} 14. Rac1 {[%emt 0:00:42]} (14. Bxd6 $11 Qxd6 15. Rad1) 14... Bxf4 $15 {[%emt 0:00:04]} 15. exf4 {[%emt 0:00:01]} Nc4 {[%emt 0:00:01]} 16. Bxc4 {[%emt 0:00:12]} dxc4 {[%emt 0:00:00]} 17. Rfe1 {[%emt 0:02:04]} b5 {[%emt 0:00:31]} 18. Re5 {[%emt 0:00:18]} Nd7 {[%emt 0:01:17]} 19. Re2 {[%emt 0:00:02]} Bd5 {[%emt 0:00:14] White must now prevent ...Bxf3.} 20. Ne5 {[%emt 0:00:37]} f6 {[%emt 0:00:32]} 21. Ng4 {[%emt 0:00:50]} (21. Nxd5 $11 cxd5 22. Ng4) 21... Rxe2 {[%emt 0:00:07]} 22. Nxe2 {[%emt 0:00:14]} Re8 {[%emt 0:00:11]} 23. Ng3 {[%emt 0:00:02]} Bf7 {[%emt 0:00:10]} 24. Nf5 {[%emt 0:00:39]} (24. Re1 $15) 24... h5 $17 {[%emt 0:00:38]} 25. Nh2 {[%emt 0:00:02]} Nf8 {[%emt 0:00:10]} 26. Re1 {[%emt 0:01:15]} Rxe1+ {[%emt 0:01:34]} 27. Qxe1 {[%emt 0:00:00]} Qxf4 {[%emt 0:00:02]} ({Better is} 27... Ng6 $19 28. g3 Qd7) 28. Ne7+ {[%emt 0:00:05]} Kh7 {[%emt 0:00:01]} 29. Nxc6 {[%emt 0:00:20]} Ng6 {[%emt 0:00:01]} (29... Bd5 {seems wilder.} 30. g3 Qd6 31. Ne7 Be6) 30. Qd1 {[%emt 0:00:33]} (30. Qe3 $17 {was necessary.}) 30... Qf5 {[%emt 0:00:13] Strongly threatening ...Nf4.} 31. Nf1 {[%emt 0:00:15]} Nf4 {[%emt 0:00:01]} 32. Ne3 {[%emt 0:00:03] Dodges Qd5} Qe4 {[%emt 0:00:31]} 33. Nb4 {[%emt 0:00:01] White is weak on the light squares} a5 $36 {[%emt 0:00:03][%mdl 2048] Black is really pushing.} 34. Nbc2 {[%emt 0:00:17]} Bg6 {[%emt 0:00:13][%cal Of4g2] Black has more active pieces.} 35. Qd2 {[%emt 0:00:20]} Nxg2 {[%emt 0:00:10] [#] Hoping for ...Nf4.} 36. d5 $2 {[%emt 0:00:55]} (36. f3 {nothing else works.} Nh4 (36... Qxf3 37. Qxg2 Qf4 38. Qf2 $16) 37. fxe4 Nf3+ 38. Kf2 Nxd2 39. e5) 36... Nf4 $19 {[%emt 0:00:15] Black is clearly winning.} 37. d6 {[%emt 0:00:03]} Nxh3+ {[%emt 0:00:01]} 38. Kh2 {[%emt 0:00:02]} Ng5 {[%emt 0:00:01] ( -> ...Qh4+)} 39. Ne1 {[%emt 0:00:02]} Qe5+ {[%emt 0:00:05]} 40. Kg2 {[%emt 0:00:09]} Ne4 {[%emt 0:00:02][%csl LRd2,LRd6]} 41. Qxa5 {[%emt 0:00:05]} Qxb2 {[%emt 0:00:09] Weighted Error Value: White=0.52/Black=0.06 (flawless) .  Mistake:       	White=5     	Black=1      Inaccurate:     	White=1     	Black=2      OK:         	White=12    	Black=20     Best:        	White=3     	Black=2      Strong:       	White=1     	---} 0-1

[Event "CCT Chessable Masters Place D-I 2024"]
[Site "Online"]
[Date "2024.02.01"]
[Round "2"]
[White "Mamedov, Rauf"]
[Black "Nepomniachtchi, Ian"]
[Result "0-1"]
[ECO "C48"]
[WhiteElo "2651"]
[BlackElo "2769"]
[Annotator "TA"]
[PlyCount "98"]
[EventDate "2024.01.12"]
[EventType "k.o."]
[EventCountry "NET"]
[SourceTitle "playchess.com"]
[Source "ChessBase"]
[SourceQuality "1"]
[TimeControl "600+2"]

{[%evp 13,98,-2,5,0,0,-16,17,21,18,25,31,29,20,35,22,27,27,8,25,-1,-8,-13,-4,-17,-19,-22,8,0,0,-8,0,0,0,-13,-16,-19,-18,-16,-20,-13,-14,-18,-10,-10,0,0,0,0,6,-100,-98,-110,-115,-124,-128,-108,-111,-118,-79,-91,-91,-197,-179,-243,-126,-303,-300,-295,-269,-289,-303,-231,-294,-285,-283,-230,-72,-29978,-29980,-29980,-29981,-29981,-29982,-29982,-29983,-29983,-29984]} 1. e4 {[%emt 0:00:02]} e5 {[%emt 0:00:05]} 2. Nf3 {[%emt 0:00:10]} Nf6 {[%emt 0:00:02]} 3. Nc3 {[%emt 0:00:24]} Nc6 {[%emt 0:00:01]} 4. Bb5 {[%emt 0:00:01]} Nd4 {[%emt 0:00:02]} 5. Bc4 {[%emt 0:00:02]} Bc5 {[%emt 0:00:03]} 6. d3 {[%emt 0:00:04]} d6 {[%emt 0:00:06]} 7. h3 {[%emt 0:00:24] C48: Four Knights: 4 Bb5, replies other than 4...Bb4.} Be6 {[%emt 0:00:17]} 8. Bxe6 {[%emt 0:00:24]} fxe6 {[%emt 0:00:12]} 9. Na4 {[%emt 0:00:29]} Bb4+ {[%emt 0:00:21]} 10. c3 {[%emt 0:00:03]} Nxf3+ {[%emt 0:00:02]} 11. Qxf3 {[%emt 0:00:01]} Qd7 $146 {[%emt 0:00:10]} ({Predecessor:} 11... Ba5 12. b4 Bb6 13. Nxb6 axb6 14. O-O O-O 15. Qe2 Qe8 16. a3 Qg6 17. Bb2 Nh5 {½-½ Motylev,A (2705)-Wu,K (2301) CHN-chT 6th China 2010 (16)}) 12. Qd1 {[%emt 0:00:45]} Ba5 {[%emt 0:00:12]} 13. b4 {[%emt 0:00:06]} Bb6 {[%emt 0:00:03]} 14. O-O {[%emt 0:00:05]} O-O {[%emt 0:00:02]} 15. Kh2 {[%emt 0:01:05]} h6 {[%emt 0:01:45]} 16. f4 {[%emt 0:01:35]} exf4 {[%emt 0:00:15]} 17. Bxf4 {[%emt 0:00:02]} e5 {[%emt 0:00:01]} 18. Bg3 {[%emt 0:00:17]} Be3 {[%emt 0:00:18]} 19. Nb2 {[%emt 0:00:09]} b5 {[%emt 0:00:09]} 20. a4 {[%emt 0:00:02]} a6 {[%emt 0:00:09]} 21. Rf3 {[%emt 0:00:23]} Bb6 {[%emt 0:00:05]} 22. Qb3+ {[%emt 0:00:04]} (22. a5 $5 Ba7 $8 23. Qe2 $11) 22... Qf7 {[%emt 0:00:51]} 23. Qxf7+ {[%emt 0:00:22]} Kxf7 {[%emt 0:00:00]} 24. Nd1 {[%emt 0:00:13]} Ke6 {[%emt 0:00:06]} 25. Bf2 {[%emt 0:00:16]} Bxf2 {[%emt 0:00:18]} 26. Rxf2 {[%emt 0:00:02]} a5 {[%emt 0:00:01]} 27. axb5 {[%emt 0:00:30]} axb4 {[%emt 0:00:02]} 28. Rc1 {[%emt 0:00:40]} b3 {[%emt 0:01:23]} 29. Rb1 {[%emt 0:00:10]} Nd7 {[%emt 0:00:08]} 30. Rxf8 {[%emt 0:01:12]} Rxf8 {[%emt 0:00:02]} 31. Kg1 {[%emt 0:00:10]} (31. Rxb3 $11 {remains equal.} Ra8 (31... Nc5 32. Ra3 $16) 32. c4) 31... Nc5 $17 {[%emt 0:00:06]} 32. Nf2 {[%emt 0:00:01]} d5 {[%emt 0:00:18]} 33. exd5+ {[%emt 0:00:29]} Kxd5 {[%emt 0:00:00]} 34. Nd1 {[%emt 0:00:02]} Nxd3 {[%emt 0:00:43]} 35. Rxb3 {[%emt 0:00:01]} Kc4 {[%emt 0:00:09]} 36. Rb1 {[%emt 0:00:01]} Rb8 {[%emt 0:00:09]} 37. Ne3+ {[%emt 0:00:05]} (37. Kf1 $17) 37... Kxc3 $19 {[%emt 0:00:02]} 38. Nd5+ {[%emt 0:00:01] [#]} (38. Ra1 {keeps fighting.}) 38... Kc2 {[%emt 0:00:01]} (38... Kd2 $1 $19 {...c6 is the strong threat.} 39. Ra1 (39. Nxc7 $2 {too greedy.} e4 $19) 39... Rxb5 40. Nxc7 Rc5 41. Ra2+ Rc2) 39. Rf1 $2 {[%emt 0:00:13]} (39. Ra1 $17 {only move.}) 39... Rxb5 $19 {[%emt 0:00:10]} 40. Nxc7 {[%emt 0:00:01]} Rb7 {[%emt 0:00:01]} 41. Nd5 {[%emt 0:00:02]} Kd2 {[%emt 0:00:05]} 42. Ra1 {[%emt 0:00:12]} e4 {[%emt 0:00:03]} 43. Ra2+ {[%emt 0:00:00]} Rb2 {[%emt 0:00:01]} 44. Ra7 {[%emt 0:00:01] [#]} Rb5 $2 {[%emt 0:00:13]} (44... Rb1+ $1 $19 {has better winning chances.} 45. Kh2 g5) 45. Rd7 $2 {[%emt 0:00:03][%mdl 8192]} (45. Ra2+ $17 Rb2 46. Ra7) 45... Rxd5 {[%emt 0:00:05]} 46. Rxd5 {[%emt 0:00:01]} e3 {[%emt 0:00:00]} 47. Rd7 {[%emt 0:00:09]} e2 {[%emt 0:00:02]} 48. Re7 {[%emt 0:00:00]} e1=Q+ {[%emt 0:00:01]} ({Inferior is} 48... e1=B 49. Rxg7 h5 50. g3 $16) 49. Rxe1 {[%emt 0:00:00]} Kxe1 {[%emt 0:00:00]} 0-1